[Event "Titled Tuesday Blitz January 17 Late 2023"]
[White "Martinez Olivera, Miguel"]
[Black "Thiel, Thomas"]
[WhiteFideId "3000559"]
[BlackFideId "4615964"]
[WhiteElo "2027"]
[BlackElo "2234"]
[Result "1-0"]
[Round "07"]
[TimeControl "180+2"]
[Date "2023.01.17"]
[WhiteClock "0:00:27"]
[BlackClock "0:00:03"]

1. Nf3 {[%clk 0:02:34]}  Nf6 {[%clk 0:02:57]} 2. d4 {[%clk 0:02:35]}  g6 {[%clk 0:02:57]} 3. c4 {[%clk 0:02:36]}  Bg7 {[%clk 0:02:57]} 4. Nc3 {[%clk 0:02:37]}  d5 {[%clk 0:02:56]} 5. e3 {[%clk 0:02:36]}  O-O {[%clk 0:02:53]} 6. Qb3 {[%clk 0:02:36]}  dxc4 {[%clk 0:02:50]} 7. Bxc4 {[%clk 0:02:35]}  c5 {[%clk 0:02:47]} 8. dxc5 {[%clk 0:02:34]}  Nc6 {[%clk 0:02:47]} 9. Be2 {[%clk 0:02:32]}  Qa5 {[%clk 0:02:43]} 10. O-O {[%clk 0:02:31]}  Qxc5 {[%clk 0:02:43]} 11. Bd2 {[%clk 0:02:31]}  Na5 {[%clk 0:02:34]} 12. Qb5 {[%clk 0:02:29]}  Qxb5 {[%clk 0:02:33]} 13. Bxb5 {[%clk 0:02:29]}  Nc6 {[%clk 0:02:33]} 14. h3 {[%clk 0:02:25]}  Bd7 {[%clk 0:02:30]} 15. Rfd1 {[%clk 0:02:23]}  a6 {[%clk 0:02:26]} 16. Be2 {[%clk 0:02:21]}  Rac8 {[%clk 0:02:21]} 17. Be1 {[%clk 0:02:20]}  Rfd8 {[%clk 0:02:19]} 18. Rd2 {[%clk 0:02:16]}  Be6 {[%clk 0:02:13]} 19. Rad1 {[%clk 0:02:16]}  Rxd2 {[%clk 0:02:11]} 20. Rxd2 {[%clk 0:02:15]}  h6 {[%clk 0:02:11]} 21. Rd1 {[%clk 0:02:11]}  Nd7 {[%clk 0:02:07]} 22. Nd4 {[%clk 0:01:56]}  Nxd4 {[%clk 0:02:05]} 23. exd4 {[%clk 0:01:56]}  Nf6 {[%clk 0:02:03]} 24. Bf3 {[%clk 0:01:55]}  Rc7 {[%clk 0:01:57]} 25. Bd2 {[%clk 0:01:46]}  Rd7 {[%clk 0:01:55]} 26. Be3 {[%clk 0:01:45]}  Nd5 {[%clk 0:01:55]} 27. Nxd5 {[%clk 0:01:45]}  Bxd5 {[%clk 0:01:55]} 28. Bxd5 {[%clk 0:01:43]}  Rxd5 {[%clk 0:01:56]} 29. Rd2 {[%clk 0:01:43]}  e6 {[%clk 0:01:52]} 30. Kf1 {[%clk 0:01:41]}  Kf8 {[%clk 0:01:51]} 31. Ke2 {[%clk 0:01:42]}  Ke7 {[%clk 0:01:50]} 32. b3 {[%clk 0:01:32]}  Kd7 {[%clk 0:01:47]} 33. f4 {[%clk 0:01:28]}  Ra5 {[%clk 0:01:46]} 34. Kf3 {[%clk 0:01:27]}  Kc6 {[%clk 0:01:45]} 35. Ke4 {[%clk 0:01:27]}  f5+ {[%clk 0:01:43]} 36. Kd3 {[%clk 0:01:24]}  Kd5 {[%clk 0:01:42]} 37. Rc2 {[%clk 0:01:22]}  Bf8 {[%clk 0:01:40]} 38. g4 {[%clk 0:01:17]}  Be7 {[%clk 0:01:36]} 39. Rg2 {[%clk 0:01:10]}  fxg4 {[%clk 0:01:18]} 40. hxg4 {[%clk 0:01:09]}  g5 {[%clk 0:01:18]} 41. f5 {[%clk 0:01:02]}  exf5 {[%clk 0:01:16]} 42. gxf5 {[%clk 0:01:02]}  Kd6 {[%clk 0:01:13]} 43. Ke4 {[%clk 0:01:02]}  Bf6 {[%clk 0:01:11]} 44. Bg1 {[%clk 0:00:53]}  Ke7 {[%clk 0:01:10]} 45. Rd2 {[%clk 0:00:49]}  h5 {[%clk 0:01:06]} 46. Be3 {[%clk 0:00:48]}  g4 {[%clk 0:01:01]} 47. Rg2 {[%clk 0:00:46]}  Kd6 {[%clk 0:00:54]} 48. Bf4+ {[%clk 0:00:45]}  Kd7 {[%clk 0:00:53]} 49. Be5 {[%clk 0:00:44]}  Bd8 {[%clk 0:00:49]} 50. Bf4 {[%clk 0:00:40]}  Rb5 {[%clk 0:00:43]} 51. Be5 {[%clk 0:00:36]}  Rb4 {[%clk 0:00:40]} 52. Kd3 {[%clk 0:00:35]}  a5 {[%clk 0:00:38]} 53. Kc3 {[%clk 0:00:34]}  Rb5 {[%clk 0:00:34]} 54. Kc4 {[%clk 0:00:33]}  Rb4+ {[%clk 0:00:34]} 55. Kc3 {[%clk 0:00:33]}  b5 {[%clk 0:00:26]} 56. Kd3 {[%clk 0:00:31]}  a4 {[%clk 0:00:21]} 57. Kc3 {[%clk 0:00:31]}  Ba5 {[%clk 0:00:20]} 58. Kc2 {[%clk 0:00:31]}  axb3+ {[%clk 0:00:18]} 59. axb3 {[%clk 0:00:31]}  Bd8 {[%clk 0:00:11]} 60. Kc3 {[%clk 0:00:31]}  Ba5 {[%clk 0:00:06]} 61. Kc2 {[%clk 0:00:31]}  Bd8 {[%clk 0:00:07]} 62. Rg1 {[%clk 0:00:29]}  Ba5 {[%clk 0:00:07]} 63. Rg3 {[%clk 0:00:27]}  Bd8 {[%clk 0:00:04]} 64. Rg1 {[%clk 0:00:27]}  Ba5 {[%clk 0:00:03]} 65. Rh1 {[%clk 0:00:27]} 1-0


[Site "https://www.chess.com"]

[Event "Titled Tuesday Blitz January 17 Late 2023"]
[White "O`Gorman, Tom"]
[Black "Marcolino, Daniel Mattos"]
[WhiteFideId "2508249"]
[BlackFideId "2106841"]
[WhiteElo "2355"]
[BlackElo "2006"]
[Result "1-0"]
[Round "07"]
[TimeControl "180+2"]
[Date "2023.01.17"]
[WhiteClock "0:01:07"]
[BlackClock "0:00:58"]

1. e4 {[%clk 0:02:56]}  d5 {[%clk 0:02:54]} 2. exd5 {[%clk 0:02:56]}  Qxd5 {[%clk 0:02:55]} 3. Nc3 {[%clk 0:02:56]}  Qd8 {[%clk 0:02:56]} 4. d4 {[%clk 0:02:55]}  Nf6 {[%clk 0:02:55]} 5. Bc4 {[%clk 0:02:53]}  a6 {[%clk 0:02:55]} 6. Nf3 {[%clk 0:02:52]}  b5 {[%clk 0:02:52]} 7. Bb3 {[%clk 0:02:50]}  c5 {[%clk 0:02:52]} 8. dxc5 {[%clk 0:02:49]}  Qxd1+ {[%clk 0:02:51]} 9. Nxd1 {[%clk 0:02:49]}  e6 {[%clk 0:02:50]} 10. a4 {[%clk 0:02:46]}  b4 {[%clk 0:02:48]} 11. Be3 {[%clk 0:02:41]}  Nbd7 {[%clk 0:02:41]} 12. c6 {[%clk 0:02:37]}  Nc5 {[%clk 0:02:39]} 13. O-O {[%clk 0:02:35]}  Be7 {[%clk 0:02:32]} 14. Ne5 {[%clk 0:02:28]}  O-O {[%clk 0:02:31]} 15. f4 {[%clk 0:02:12]}  a5 {[%clk 0:02:31]} 16. Nf2 {[%clk 0:02:11]}  Ba6 {[%clk 0:02:27]} 17. Rfd1 {[%clk 0:02:10]}  Rac8 {[%clk 0:02:25]} 18. Bc4 {[%clk 0:02:00]}  Bxc4 {[%clk 0:02:23]} 19. Nxc4 {[%clk 0:02:01]}  Rxc6 {[%clk 0:02:06]} 20. Nxa5 {[%clk 0:02:01]}  Ra6 {[%clk 0:02:06]} 21. Bxc5 {[%clk 0:01:48]}  Bxc5 {[%clk 0:02:05]} 22. Nb3 {[%clk 0:01:49]}  Be3 {[%clk 0:01:55]} 23. Kf1 {[%clk 0:01:46]}  Bxf4 {[%clk 0:01:47]} 24. Nd3 {[%clk 0:01:45]}  Bxh2 {[%clk 0:01:41]} 25. Nxb4 {[%clk 0:01:44]}  Rb6 {[%clk 0:01:39]} 26. c3 {[%clk 0:01:43]}  Ne4 {[%clk 0:01:35]} 27. a5 {[%clk 0:01:41]}  Rbb8 {[%clk 0:01:32]} 28. Nd4 {[%clk 0:01:37]}  f5 {[%clk 0:01:10]} 29. a6 {[%clk 0:01:26]}  f4 {[%clk 0:01:04]} 30. Nxe6 {[%clk 0:01:11]}  Rf7 {[%clk 0:00:59]} 31. a7 {[%clk 0:01:09]}  Ra8 {[%clk 0:00:59]} 32. Rd8+ {[%clk 0:01:08]}  Rxd8 {[%clk 0:00:58]} 33. Nxd8 {[%clk 0:01:09]}  Rxa7 {[%clk 0:00:57]} 34. Rxa7 {[%clk 0:01:08]}  Ng3+ {[%clk 0:00:58]} 35. Ke1 {[%clk 0:01:07]} 1-0


[Site "https://www.chess.com"]

[Event "Titled Tuesday Blitz January 17 Late 2023"]
[White "Rosh Jain"]
[Black "Weisz, Bryan"]
[WhiteFideId "25789465"]
[BlackFideId "30934133"]
[WhiteElo "2248"]
[BlackElo "1973"]
[Result "1-0"]
[Round "07"]
[TimeControl "180+2"]
[Date "2023.01.17"]
[WhiteClock "0:01:57"]
[BlackClock "0:01:26"]

1. e4 {[%clk 0:02:54]}  f5 {[%clk 0:02:45]} 2. exf5 {[%clk 0:02:53]}  Kf7 {[%clk 0:02:44]} 3. Qh5+ {[%clk 0:02:48]}  g6 {[%clk 0:02:44]} 4. fxg6+ {[%clk 0:02:47]}  Kg7 {[%clk 0:02:45]} 5. gxh7 {[%clk 0:02:42]}  Nf6 {[%clk 0:02:35]} 6. Qg5+ {[%clk 0:02:39]}  Kf7 {[%clk 0:02:35]} 7. Bd3 {[%clk 0:02:38]}  e6 {[%clk 0:02:13]} 8. Nf3 {[%clk 0:02:35]}  Nc6 {[%clk 0:02:08]} 9. Qg6+ {[%clk 0:02:25]}  Ke7 {[%clk 0:02:07]} 10. Ng5 {[%clk 0:02:21]}  Ne5 {[%clk 0:02:04]} 11. Nf7 {[%clk 0:02:07]}  Nxg6 {[%clk 0:01:46]} 12. Bxg6 {[%clk 0:02:05]}  Qe8 {[%clk 0:01:43]} 13. Nxh8 {[%clk 0:02:03]}  Qd8 {[%clk 0:01:31]} 14. Nf7 {[%clk 0:02:01]}  Qe8 {[%clk 0:01:26]} 15. h8=Q {[%clk 0:01:57]} 1-0


[Site "https://www.chess.com"]

[Event "Titled Tuesday Blitz January 17 Late 2023"]
[White "Abdrlauf, Elham"]
[Black "Sadhwani, Raunak"]
[WhiteFideId "1533533"]
[BlackFideId "35093487"]
[WhiteElo "2518"]
[BlackElo "2627"]
[Result "1-0"]
[Round "08"]
[TimeControl "180+2"]
[Date "2023.01.17"]
[WhiteClock "0:00:01"]
[BlackClock "0:00:03"]

1. e4 {[%clk 0:03:00]}  g6 {[%clk 0:02:59]} 2. d4 {[%clk 0:03:00]}  Bg7 {[%clk 0:03:00]} 3. Nf3 {[%clk 0:03:01]}  d6 {[%clk 0:03:00]} 4. Be3 {[%clk 0:03:02]}  a6 {[%clk 0:02:56]} 5. c4 {[%clk 0:03:01]}  Nf6 {[%clk 0:02:56]} 6. Nc3 {[%clk 0:03:02]}  O-O {[%clk 0:02:56]} 7. h3 {[%clk 0:02:59]}  b6 {[%clk 0:02:53]} 8. Bd3 {[%clk 0:02:58]}  Bb7 {[%clk 0:02:54]} 9. O-O {[%clk 0:02:57]}  Nc6 {[%clk 0:02:51]} 10. d5 {[%clk 0:02:48]}  Nb4 {[%clk 0:02:51]} 11. Be2 {[%clk 0:02:42]}  a5 {[%clk 0:02:51]} 12. Nd4 {[%clk 0:02:41]}  Nd7 {[%clk 0:02:49]} 13. Qd2 {[%clk 0:02:33]}  Nc5 {[%clk 0:02:46]} 14. Bh6 {[%clk 0:02:20]}  e5 {[%clk 0:02:38]} 15. Bxg7 {[%clk 0:01:44]}  Kxg7 {[%clk 0:02:35]} 16. Ndb5 {[%clk 0:01:45]}  Qe7 {[%clk 0:02:24]} 17. Rab1 {[%clk 0:01:35]}  Nba6 {[%clk 0:02:19]} 18. a3 {[%clk 0:01:24]}  a4 {[%clk 0:02:14]} 19. Qc2 {[%clk 0:01:24]}  Nb8 {[%clk 0:02:12]} 20. Nd1 {[%clk 0:01:16]}  Ba6 {[%clk 0:02:03]} 21. Nbc3 {[%clk 0:01:14]}  Bc8 {[%clk 0:02:00]} 22. Ne3 {[%clk 0:01:12]}  Nbd7 {[%clk 0:01:57]} 23. Bd1 {[%clk 0:01:03]}  Nf6 {[%clk 0:01:50]} 24. f3 {[%clk 0:00:50]}  Nh5 {[%clk 0:01:48]} 25. Qf2 {[%clk 0:00:50]}  f5 {[%clk 0:01:41]} 26. exf5 {[%clk 0:00:51]}  gxf5 {[%clk 0:01:42]} 27. Bc2 {[%clk 0:00:51]}  f4 {[%clk 0:01:38]} 28. Ng4 {[%clk 0:00:43]}  Ng3 {[%clk 0:01:28]} 29. Rfe1 {[%clk 0:00:44]}  Bxg4 {[%clk 0:01:14]} 30. fxg4 {[%clk 0:00:42]}  e4 {[%clk 0:01:14]} 31. Nxe4 {[%clk 0:00:19]}  Ncxe4 {[%clk 0:01:00]} 32. Bxe4 {[%clk 0:00:20]}  Nxe4 {[%clk 0:01:00]} 33. Qd4+ {[%clk 0:00:19]}  Qf6 {[%clk 0:01:01]} 34. Rxe4 {[%clk 0:00:18]}  Qxd4+ {[%clk 0:00:54]} 35. Rxd4 {[%clk 0:00:18]}  Rae8 {[%clk 0:00:55]} 36. Rf1 {[%clk 0:00:17]}  Re2 {[%clk 0:00:38]} 37. Rf2 {[%clk 0:00:18]}  Re1+ {[%clk 0:00:35]} 38. Rf1 {[%clk 0:00:17]}  Re2 {[%clk 0:00:35]} 39. Rf2 {[%clk 0:00:18]}  Re1+ {[%clk 0:00:34]} 40. Kh2 {[%clk 0:00:19]}  Kg6 {[%clk 0:00:32]} 41. Rdxf4 {[%clk 0:00:08]}  Rxf4 {[%clk 0:00:33]} 42. Rxf4 {[%clk 0:00:09]}  Re2 {[%clk 0:00:32]} 43. Rf8 {[%clk 0:00:07]}  Rc2 {[%clk 0:00:33]} 44. Rg8+ {[%clk 0:00:04]}  Kf7 {[%clk 0:00:33]} 45. Rc8 {[%clk 0:00:04]}  Rxc4 {[%clk 0:00:33]} 46. Kg3 {[%clk 0:00:04]}  b5 {[%clk 0:00:28]} 47. h4 {[%clk 0:00:04]}  Kf6 {[%clk 0:00:19]} 48. h5 {[%clk 0:00:04]}  h6 {[%clk 0:00:14]} 49. Rg8 {[%clk 0:00:04]}  Rc2 {[%clk 0:00:08]} 50. Rg6+ {[%clk 0:00:05]}  Ke5 {[%clk 0:00:07]} 51. g5 {[%clk 0:00:02]}  hxg5 {[%clk 0:00:05]} 52. h6 {[%clk 0:00:03]}  Rc1 {[%clk 0:00:03]} 53. Kh2 {[%clk 0:00:01]} 1-0


[Site "https://www.chess.com"]

[Event "Titled Tuesday Blitz January 17 Late 2023"]
[White "Zhigalko, Sergei"]
[Black "Duda, Jan-Krzysztof"]
[WhiteFideId "13502956"]
[BlackFideId "1170546"]
[WhiteElo "2572"]
[BlackElo "2724"]
[Result "0-1"]
[Round "08"]
[TimeControl "180+2"]
[Date "2023.01.17"]
[WhiteClock "0:00:02"]
[BlackClock "0:00:18"]

1. e4 {[%clk 0:03:00]}  c6 {[%clk 0:02:56]} 2. d4 {[%clk 0:03:00]}  d5 {[%clk 0:02:56]} 3. e5 {[%clk 0:03:01]}  Bf5 {[%clk 0:02:56]} 4. Nf3 {[%clk 0:03:02]}  e6 {[%clk 0:02:56]} 5. Be2 {[%clk 0:03:03]}  Nd7 {[%clk 0:02:53]} 6. O-O {[%clk 0:03:03]}  a5 {[%clk 0:02:53]} 7. Re1 {[%clk 0:02:59]}  a4 {[%clk 0:02:52]} 8. Nbd2 {[%clk 0:03:00]}  Ne7 {[%clk 0:02:46]} 9. Nf1 {[%clk 0:02:42]}  h6 {[%clk 0:02:46]} 10. Ng3 {[%clk 0:02:41]}  Bh7 {[%clk 0:02:46]} 11. Bd3 {[%clk 0:02:38]}  Bxd3 {[%clk 0:02:39]} 12. Qxd3 {[%clk 0:02:38]}  g6 {[%clk 0:02:33]} 13. Be3 {[%clk 0:02:34]}  Nf5 {[%clk 0:02:29]} 14. Nxf5 {[%clk 0:02:28]}  gxf5 {[%clk 0:02:30]} 15. Qd2 {[%clk 0:02:20]}  Qa5 {[%clk 0:02:28]} 16. c3 {[%clk 0:02:20]}  c5 {[%clk 0:02:20]} 17. dxc5 {[%clk 0:02:14]}  Nxc5 {[%clk 0:02:17]} 18. Nd4 {[%clk 0:01:55]}  Ne4 {[%clk 0:02:14]} 19. Qe2 {[%clk 0:01:51]}  h5 {[%clk 0:01:44]} 20. f3 {[%clk 0:01:21]}  Nc5 {[%clk 0:01:43]} 21. b4 {[%clk 0:01:18]}  axb3 {[%clk 0:01:40]} 22. Nxb3 {[%clk 0:01:18]}  Nxb3 {[%clk 0:00:52]} 23. axb3 {[%clk 0:01:17]}  Qxa1 {[%clk 0:00:46]} 24. Qb5+ {[%clk 0:01:17]}  Kd8 {[%clk 0:00:44]} 25. Rxa1 {[%clk 0:00:26]}  Rxa1+ {[%clk 0:00:45]} 26. Kf2 {[%clk 0:00:27]}  Bg7 {[%clk 0:00:37]} 27. Qxb7 {[%clk 0:00:15]}  Bxe5 {[%clk 0:00:35]} 28. Bb6+ {[%clk 0:00:07]}  Ke8 {[%clk 0:00:35]} 29. Bc5 {[%clk 0:00:06]}  Ra2+ {[%clk 0:00:29]} 30. Kf1 {[%clk 0:00:06]}  Ra1+ {[%clk 0:00:27]} 31. Ke2 {[%clk 0:00:06]}  Ra2+ {[%clk 0:00:27]} 32. Kd3 {[%clk 0:00:06]}  Kd8 {[%clk 0:00:26]} 33. Be7+ {[%clk 0:00:06]}  Ke8 {[%clk 0:00:26]} 34. Bc5 {[%clk 0:00:05]}  Kd8 {[%clk 0:00:25]} 35. f4 {[%clk 0:00:04]}  Bxf4 {[%clk 0:00:21]} 36. Be7+ {[%clk 0:00:02]}  Ke8 {[%clk 0:00:21]} 37. Qc8+ {[%clk 0:00:02]}  Kxe7 {[%clk 0:00:21]} 38. Qb7+ {[%clk 0:00:01]}  Kf6 {[%clk 0:00:22]} 39. c4 {[%clk 0:00:01]}  Rd2+ {[%clk 0:00:17]} 40. Kc3 {[%clk 0:00:02]}  d4+ {[%clk 0:00:18]} 41. Kb4 {[%clk 0:00:02]}  Rb8 {[%clk 0:00:18]} 0-1


[Site "https://www.chess.com"]

[Event "Titled Tuesday Blitz January 17 Late 2023"]
[White "Ibarra Jerez, Jose Carlos"]
[Black "Paravyan, David"]
[WhiteFideId "2226332"]
[BlackFideId "4194985"]
[WhiteElo "2563"]
[BlackElo "2601"]
[Result "1/2-1/2"]
[Round "08"]
[TimeControl "180+2"]
[Date "2023.01.17"]
[WhiteClock "0:00:10"]
[BlackClock "0:00:07"]

1. d4 {[%clk 0:02:59]}  Nf6 {[%clk 0:02:59]} 2. Nc3 {[%clk 0:02:58]}  d5 {[%clk 0:02:59]} 3. Bf4 {[%clk 0:02:58]}  g6 {[%clk 0:02:59]} 4. e3 {[%clk 0:02:57]}  Bg7 {[%clk 0:02:59]} 5. Nb5 {[%clk 0:02:54]}  Na6 {[%clk 0:02:59]} 6. h3 {[%clk 0:02:54]}  O-O {[%clk 0:02:58]} 7. Nf3 {[%clk 0:02:54]}  Ne4 {[%clk 0:02:59]} 8. Bd3 {[%clk 0:02:50]}  c6 {[%clk 0:02:59]} 9. Na3 {[%clk 0:02:42]}  Qa5+ {[%clk 0:02:58]} 10. Kf1 {[%clk 0:02:09]}  Nb4 {[%clk 0:02:44]} 11. Be2 {[%clk 0:01:58]}  c5 {[%clk 0:02:32]} 12. c3 {[%clk 0:01:54]}  Nc6 {[%clk 0:02:31]} 13. Nb1 {[%clk 0:01:31]}  Be6 {[%clk 0:02:19]} 14. Nbd2 {[%clk 0:01:31]}  Nxd2+ {[%clk 0:02:14]} 15. Qxd2 {[%clk 0:01:30]}  Rac8 {[%clk 0:02:14]} 16. g4 {[%clk 0:01:28]}  Rfd8 {[%clk 0:01:25]} 17. Kg2 {[%clk 0:01:26]}  Qb6 {[%clk 0:01:25]} 18. Rae1 {[%clk 0:01:13]}  a6 {[%clk 0:01:22]} 19. Bd3 {[%clk 0:01:08]}  Bd7 {[%clk 0:01:16]} 20. Bg3 {[%clk 0:00:53]}  Re8 {[%clk 0:01:11]} 21. Ne5 {[%clk 0:00:51]}  Nxe5 {[%clk 0:01:11]} 22. dxe5 {[%clk 0:00:47]}  Qa5 {[%clk 0:00:56]} 23. a3 {[%clk 0:00:45]}  d4 {[%clk 0:00:55]} 24. Be4 {[%clk 0:00:24]}  Bh6 {[%clk 0:00:24]} 25. f4 {[%clk 0:00:19]}  Red8 {[%clk 0:00:14]} 26. Rd1 {[%clk 0:00:11]}  Ba4 {[%clk 0:00:14]} 27. Rde1 {[%clk 0:00:08]}  dxc3 {[%clk 0:00:14]} 28. Qxc3 {[%clk 0:00:07]}  Rd2+ {[%clk 0:00:12]} 29. Kf3 {[%clk 0:00:07]}  Qd8 {[%clk 0:00:04]} 30. b3 {[%clk 0:00:05]}  Bb5 {[%clk 0:00:04]} 31. a4 {[%clk 0:00:03]}  Bc6 {[%clk 0:00:05]} 32. Bxc6 {[%clk 0:00:03]}  Rxc6 {[%clk 0:00:06]} 33. Re2 {[%clk 0:00:03]}  Qd5+ {[%clk 0:00:06]} 34. e4 {[%clk 0:00:03]}  Rd3+ {[%clk 0:00:06]} 35. Kf2 {[%clk 0:00:04]}  Qxe4 {[%clk 0:00:04]} 36. Rxe4 {[%clk 0:00:03]}  Rxc3 {[%clk 0:00:05]} 37. Re3 {[%clk 0:00:03]}  Rxe3 {[%clk 0:00:05]} 38. Kxe3 {[%clk 0:00:04]}  Rb6 {[%clk 0:00:05]} 39. Rb1 {[%clk 0:00:05]}  f6 {[%clk 0:00:03]} 40. exf6 {[%clk 0:00:05]}  exf6 {[%clk 0:00:04]} 41. Kd3 {[%clk 0:00:05]}  Rb4 {[%clk 0:00:04]} 42. f5 {[%clk 0:00:04]}  gxf5 {[%clk 0:00:04]} 43. gxf5 {[%clk 0:00:05]}  c4+ {[%clk 0:00:02]} 44. Kc3 {[%clk 0:00:05]}  Bf8 {[%clk 0:00:03]} 45. Bf2 {[%clk 0:00:04]}  Kf7 {[%clk 0:00:02]} 46. Bd4 {[%clk 0:00:04]}  b5 {[%clk 0:00:02]} 47. axb5 {[%clk 0:00:05]}  axb5 {[%clk 0:00:03]} 48. Rb2 {[%clk 0:00:05]}  Rxb3+ {[%clk 0:00:02]} 49. Rxb3 {[%clk 0:00:05]}  cxb3 {[%clk 0:00:03]} 50. Kxb3 {[%clk 0:00:06]}  Bd6 {[%clk 0:00:03]} 51. Kc2 {[%clk 0:00:06]}  Be7 {[%clk 0:00:04]} 52. Kd3 {[%clk 0:00:07]}  Ke8 {[%clk 0:00:05]} 53. Ke4 {[%clk 0:00:07]}  Kf7 {[%clk 0:00:03]} 54. Kd5 {[%clk 0:00:07]}  b4 {[%clk 0:00:03]} 55. Bb2 {[%clk 0:00:05]}  Bd8 {[%clk 0:00:02]} 56. Kc4 {[%clk 0:00:05]}  Be7 {[%clk 0:00:03]} 57. Kd5 {[%clk 0:00:06]}  Bf8 {[%clk 0:00:02]} 58. Bd4 {[%clk 0:00:05]}  h5 {[%clk 0:00:02]} 59. Bb2 {[%clk 0:00:05]}  Be7 {[%clk 0:00:02]} 60. Bd4 {[%clk 0:00:06]}  Bd8 {[%clk 0:00:02]} 61. Kc4 {[%clk 0:00:06]}  Be7 {[%clk 0:00:02]} 62. Kd5 {[%clk 0:00:06]}  Bf8 {[%clk 0:00:02]} 63. Bb2 {[%clk 0:00:05]}  Bh6 {[%clk 0:00:03]} 64. Kc4 {[%clk 0:00:06]}  Bd2 {[%clk 0:00:03]} 65. Kd3 {[%clk 0:00:06]}  Be1 {[%clk 0:00:04]} 66. Ke2 {[%clk 0:00:06]}  Bc3 {[%clk 0:00:03]} 67. Bxc3 {[%clk 0:00:05]}  bxc3 {[%clk 0:00:04]} 68. Kd3 {[%clk 0:00:06]}  Ke7 {[%clk 0:00:04]} 69. Kxc3 {[%clk 0:00:06]}  Kd6 {[%clk 0:00:05]} 70. Kd4 {[%clk 0:00:07]}  h4 {[%clk 0:00:05]} 71. Ke4 {[%clk 0:00:07]}  Kc5 {[%clk 0:00:05]} 72. Kf4 {[%clk 0:00:08]}  Kd4 {[%clk 0:00:06]} 73. Kg4 {[%clk 0:00:08]}  Ke4 {[%clk 0:00:07]} 74. Kxh4 {[%clk 0:00:08]}  Kxf5 {[%clk 0:00:04]} 75. Kg3 {[%clk 0:00:09]}  Kg5 {[%clk 0:00:04]} 76. h4+ {[%clk 0:00:08]}  Kh5 {[%clk 0:00:05]} 77. Kf4 {[%clk 0:00:09]}  Kxh4 {[%clk 0:00:06]} 78. Kf5 {[%clk 0:00:09]}  Kg3 {[%clk 0:00:07]} 79. Kxf6 {[%clk 0:00:10]} 1/2-1/2


[Site "https://www.chess.com"]

[Event "Titled Tuesday Blitz January 17 Late 2023"]
[White "Esipenko, Andrey"]
[Black "Bjelobrk, Igor"]
[WhiteFideId "24175439"]
[BlackFideId "4300726"]
[WhiteElo "2679"]
[BlackElo "2403"]
[Result "1-0"]
[Round "08"]
[TimeControl "180+2"]
[Date "2023.01.17"]
[WhiteClock "0:00:06"]
[BlackClock "0:00:09"]

1. Nf3 {[%clk 0:02:56]}  d5 {[%clk 0:02:51]} 2. g3 {[%clk 0:02:57]}  Nc6 {[%clk 0:02:50]} 3. d4 {[%clk 0:02:56]}  Bf5 {[%clk 0:02:47]} 4. Bg2 {[%clk 0:02:56]}  Nb4 {[%clk 0:02:46]} 5. Na3 {[%clk 0:02:56]}  e6 {[%clk 0:02:45]} 6. O-O {[%clk 0:02:47]}  Be7 {[%clk 0:02:44]} 7. c3 {[%clk 0:02:18]}  Nc6 {[%clk 0:02:42]} 8. Qb3 {[%clk 0:02:19]}  Rb8 {[%clk 0:02:31]} 9. Re1 {[%clk 0:01:49]}  Nf6 {[%clk 0:02:25]} 10. Nh4 {[%clk 0:01:48]}  Bg4 {[%clk 0:02:16]} 11. h3 {[%clk 0:01:46]}  Bh5 {[%clk 0:02:15]} 12. g4 {[%clk 0:01:45]}  Bg6 {[%clk 0:02:15]} 13. Nxg6 {[%clk 0:01:41]}  hxg6 {[%clk 0:02:16]} 14. Bf4 {[%clk 0:01:41]}  Bd6 {[%clk 0:02:02]} 15. Bg5 {[%clk 0:01:30]}  Be7 {[%clk 0:02:01]} 16. Nb1 {[%clk 0:01:26]}  O-O {[%clk 0:01:50]} 17. Nd2 {[%clk 0:01:24]}  Ne8 {[%clk 0:01:50]} 18. Bxe7 {[%clk 0:01:23]}  Nxe7 {[%clk 0:01:50]} 19. e4 {[%clk 0:01:21]}  c6 {[%clk 0:01:50]} 20. Nf3 {[%clk 0:01:11]}  Nd6 {[%clk 0:01:44]} 21. e5 {[%clk 0:01:08]}  Ne4 {[%clk 0:01:43]} 22. Qc2 {[%clk 0:01:03]}  g5 {[%clk 0:01:40]} 23. Rxe4 {[%clk 0:01:01]}  dxe4 {[%clk 0:01:40]} 24. Nxg5 {[%clk 0:01:02]}  Ng6 {[%clk 0:01:30]} 25. Nxe4 {[%clk 0:01:02]}  Nf4 {[%clk 0:01:20]} 26. Qd2 {[%clk 0:00:59]}  g5 {[%clk 0:01:11]} 27. h4 {[%clk 0:00:57]}  f6 {[%clk 0:00:57]} 28. exf6 {[%clk 0:00:43]}  Rxf6 {[%clk 0:00:57]} 29. hxg5 {[%clk 0:00:30]}  Rf7 {[%clk 0:00:50]} 30. Re1 {[%clk 0:00:30]}  Qe7 {[%clk 0:00:45]} 31. Nf6+ {[%clk 0:00:24]}  Rxf6 {[%clk 0:00:45]} 32. gxf6 {[%clk 0:00:24]}  Qxf6 {[%clk 0:00:45]} 33. Qe3 {[%clk 0:00:24]}  Rf8 {[%clk 0:00:44]} 34. Qg3 {[%clk 0:00:24]}  Qg5 {[%clk 0:00:42]} 35. Bf1 {[%clk 0:00:20]}  Rf6 {[%clk 0:00:37]} 36. Re5 {[%clk 0:00:21]}  Qg7 {[%clk 0:00:37]} 37. Qh4 {[%clk 0:00:19]}  Ng6 {[%clk 0:00:36]} 38. Qg3 {[%clk 0:00:13]}  Nxe5 {[%clk 0:00:35]} 39. dxe5 {[%clk 0:00:14]}  Rf7 {[%clk 0:00:32]} 40. f4 {[%clk 0:00:09]}  Qf8 {[%clk 0:00:29]} 41. f5 {[%clk 0:00:08]}  exf5 {[%clk 0:00:29]} 42. e6 {[%clk 0:00:07]}  Rg7 {[%clk 0:00:29]} 43. Be2 {[%clk 0:00:05]}  fxg4 {[%clk 0:00:26]} 44. Qe5 {[%clk 0:00:05]}  g3 {[%clk 0:00:25]} 45. Qe3 {[%clk 0:00:04]}  Qf6 {[%clk 0:00:18]} 46. Bc4 {[%clk 0:00:04]}  Kf8 {[%clk 0:00:17]} 47. Qxa7 {[%clk 0:00:03]}  Rg5 {[%clk 0:00:11]} 48. Qb8+ {[%clk 0:00:02]}  Kg7 {[%clk 0:00:11]} 49. Qxb7+ {[%clk 0:00:01]}  Kh6 {[%clk 0:00:11]} 50. Qb6 {[%clk 0:00:02]}  g2 {[%clk 0:00:10]} 51. Qe3 {[%clk 0:00:02]}  Qe7 {[%clk 0:00:08]} 52. Bd3 {[%clk 0:00:03]}  Qd6 {[%clk 0:00:08]} 53. Qh3+ {[%clk 0:00:03]}  Kg7 {[%clk 0:00:08]} 54. Qh7+ {[%clk 0:00:04]}  Kf6 {[%clk 0:00:09]} 55. Qf7+ {[%clk 0:00:05]}  Ke5 {[%clk 0:00:09]} 56. e7 {[%clk 0:00:05]}  Qxd3 {[%clk 0:00:09]} 57. e8=Q+ {[%clk 0:00:05]}  Kd6 {[%clk 0:00:09]} 58. Qfd7+ {[%clk 0:00:05]}  Kc5 {[%clk 0:00:09]} 59. Qxd3 {[%clk 0:00:06]} 1-0


[Site "https://www.chess.com"]